bitfinex-derivatives/quotes_SOLF0:USTF0_20240930
["timestamp","ask_amount","ask_price","bid_price","bid_amount"]
[1727722553481,3.2217,155.24,155.22,8.91]
[1727722554081,3.2217,155.24,155.23,8.91]
[1727722556982,8.91,155.28,155.23,8.91]
[1727722557292,3.2215,155.25,155.23,8.91]
[1727722558686,3.2216,155.24,155.23,8.91]
[1727722564290,3.2219,155.23,155.22,8.91]
[1727722564589,8.91,155.24,155.21,0.12502]
[1727722564893,6.4412,155.29,155.21,0.12502]
[1727722564894,12.132,155.22,155.21,0.12502]
[1727722566396,3.222,155.22,155.21,0.12502]
[1727722578913,12.132,155.22,155.21,0.12502]
[1727722579108,12.132,155.22,155.15,9.03502]
[1727722579109,8.91,155.22,155.15,0.12502]
[1727722579398,1.3043,155.25,155.15,0.12502]
[1727722579399,3.2232,155.16,155.15,0.12502]
[1727722580700,12.1332,155.16,155.15,0.12502]
[1727722583394,3.2232,155.16,155.15,0.12502]
[1727722583599,12.1332,155.16,155.15,0.12502]
[1727722591510,3.2232,155.16,155.15,0.12502]
[1727722592412,12.1332,155.16,155.15,0.12502]
[1727722592611,9.89128039,155.16,155.09,0.12502]
[1727722592911,1.26,155.19,155.09,0.12502]
[1727722592912,3.2245,155.1,155.09,0.12502]
[1727722593103,12.1345,155.1,155.09,0.12502]
[1727722593709,3.2245,155.1,155.09,0.12502]
[1727722595810,12.1345,155.1,155.09,0.12502]
[1727722600212,3.2256,155.05,155.03,0.12502]
[1727722600410,8.91,155.05,155.03,0.12502]
[1727722601515,3.2257,155.04,155.03,0.12502]
[1727722601712,8.91,155.06,155.03,0.12502]
[1727722602214,12.1354,155.06,155.03,0.12502]
[1727722604012,3.2256,155.05,155.03,0.12502]
[1727722604510,8.91,155.06,155.03,0.12502]
[1727722604707,3.2255,155.05,155.03,0.12502]
[1727722609824,8.91,155.06,155.03,0.12502]
[1727722610627,2.5411,155.09,155.03,0.12502]
[1727722610819,8.91,155.07,155.03,3.35082]
[1727722613921,8.91,155.07,155.03,0.12502]
[1727722614820,8.91,155.08,155.03,9.03502]
[1727722615227,8.91,155.08,155.04,3.2256]
[1727722616728,8.91,155.07,155.04,3.2256]
[1727722617128,8.91,155.07,155.03,3.35082]
[1727722617331,8.91,155.07,155.03,0.12502]
[1727722617723,8.91,155.07,155.03,3.35082]
[1727722618425,2.5411,155.09,155.03,3.35082]
[1727722618629,8.91,155.06,155.03,3.35082]
[1727722619131,8.91,155.07,155.03,3.35082]
[1727722619430,8.91,155.07,155.03,12.26082]
[1727722619924,1.3436,155.11,155.04,8.91]
[1727722620129,8.91,155.1,155.04,8.91]
[1727722620336,65.93990251,155.12,155.07,8.91]
[1727722620517,74.84990251,155.12,155.08,3.2248]
[1727722620722,74.84990251,155.12,155.08,8.91]
[1727722620923,74.84990251,155.12,155.09,3.2247]
[1727722621131,74.84990251,155.12,155.08,8.91]
[1727722621630,74.84990251,155.12,155.08,12.1348]
[1727722623428,1.2842,155.2,155.1,8.91]
[1727722623627,1.2842,155.2,155.05,3.28290462]
[1727722623628,8.91,155.16,155.11,8.91]
[1727722624021,2.5665,155.19,155.11,12.1342]
[1727722624224,8.91,155.16,155.11,8.91]
[1727722624434,8.91,155.16,155.12,8.91]
[1727722624736,8.91,155.18,155.12,8.91]
[1727722625237,8.91,155.18,155.12,12.134]
[1727722625539,8.91,155.17,155.12,8.91]
[1727722625926,8.91,155.17,155.13,3.2238]
[1727722626329,9.03502,155.15,155.09,3.2246]
[1727722626528,8.91,155.12,155.07,1.2882]
[1727722626729,8.91,155.11,155.06,1.226]
[1727722626934,8.91,155.11,155.05,8.91]
[1727722626935,8.91,155.1,155.07,3.225]
[1727722627730,8.91,155.12,155.07,8.91]
[1727722627934,8.91,155.13,155.08,8.91]
[1727722628436,12.25852,155.15,155.09,8.91]
[1727722629240,12.25852,155.15,155.11,3.2243]
[1727722629433,12.25852,155.15,155.09,8.91]
[1727722629933,0.12502,155.15,155.12,12.134]
[1727722630139,0.12502,155.15,155.12,8.91]
[1727722630340,0.12502,155.15,155.13,8.91]
[1727722630541,0.12502,155.15,155.13,3.2237]
[1727722631237,0.12502,155.15,155.14,12.1337]
[1727722631636,0.12502,155.15,155.14,3.2237]
[1727722633237,0.12502,155.21,155.14,13.94]
[1727722633539,3.34732,155.21,155.14,13.94]
[1727722634347,3.34732,155.21,155.17,3.223]
[1727722634646,3.2225,155.2,155.14,13.94]
[1727722634848,0.12502,155.21,155.14,13.94]
[1727722635041,0.12502,155.21,155.16,3.223]
[1727722635342,3.34732,155.21,155.14,13.94]
[1727722635948,0.12502,155.21,155.19,3.2226]
[1727722636841,0.12502,155.21,155.16,13.94]
[1727722637149,0.12502,155.21,155.18,3.2226]
[1727722637349,0.12502,155.21,155.16,13.94]
[1727722637644,0.12502,155.21,155.2,3.2224]
[1727722641546,0.12502,155.21,155.18,13.94]
[1727722641754,0.12502,155.21,155.19,3.2225]
[1727722645754,0.12502,155.21,155.18,13.94]
[1727722646049,0.12502,155.21,155.2,3.2224]
[1727722653658,0.12502,155.21,155.2,12.1324]
[1727722654753,0.12502,155.21,155.14,1.3554]
[1727722654952,0.12502,155.21,155.18,8.91]
[1727722655847,0.12502,155.21,155.14,1.3554]
[1727722655848,8.91,155.19,155.15,3.2233]
[1727722656253,12.1327,155.19,155.14,8.91]
[1727722656557,12.1327,155.19,155.15,3.2233]
[1727722656958,12.1327,155.19,155.16,3.2232]
[1727722658453,3.2225,155.2,155.17,12.133]
[1727722658858,9.03502,155.21,155.17,8.91]
[1727722659061,3.34722,155.21,155.18,3.2227]
[1727722659358,3.34722,155.21,155.17,8.91]
[1727722660461,3.34722,155.21,155.17,12.1329]
[1727722661562,3.34722,155.21,155.17,8.91]
[1727722661756,3.34722,155.21,155.18,3.2228]
[1727722662355,0.12502,155.21,155.19,3.2225]
[1727722662555,0.12502,155.21,155.19,12.1325]
[1727722663658,0.12502,155.21,155.2,3.2224]
[1727722664164,0.12502,155.21,155.19,8.91]
[1727722664468,0.12502,155.21,155.19,12.1324]
[1727722664662,0.12502,155.21,155.19,8.91]
[1727722664855,0.12502,155.21,155.2,12.1324]
[1727722667362,0.12502,155.21,155.2,8.91]
[1727722667564,3.34732,155.21,155.14,2.6082]
[1727722667860,3.34732,155.21,155.18,8.91]
[1727722668057,0.12502,155.21,155.14,2.6082]
[1727722668268,3.2225,155.2,155.16,8.91]
[1727722668465,3.2225,155.2,155.16,3.2231]
[1727722668661,3.2225,155.2,155.16,8.91]
[1727722668867,3.2226,155.19,155.16,8.91]
[1727722669671,3.2226,155.19,155.14,1.2493]
[1727722670366,3.2225,155.2,155.16,3.2231]
[1727722670867,0.12502,155.21,155.15,13.93]
[1727722671168,0.12502,155.21,155.15,17.15674298]
[1727722671758,0.12502,155.21,155.18,3.2227]
[1727722672462,3.34732,155.21,155.17,3.2229]
[1727722672765,0.12502,155.21,155.15,13.93]
[1727722673271,3.2227,155.19,155.16,3.2231]
[1727722674265,0.12502,155.21,155.15,13.93]
[1727722674470,0.12502,155.21,155.15,17.1533]
[1727722675669,3.2227,155.19,155.15,17.1533]
[1727722676176,3.2227,155.19,155.15,13.93]
[1727722676474,3.2227,155.19,155.16,3.2232]
[1727722677768,0.12502,155.21,155.13,72.77205639]
[1727722677968,14.05502,155.21,155.13,72.77205639]
[1727722678362,3.2236,155.15,155.13,72.77205639]
[1727722678567,3.2236,155.15,155.11,3.2241]
[1727722679069,3.2236,155.15,155.1,16.5687]
[1727722679070,1.2886,155.2,155.1,16.5687]
[1727722679971,3.2233,155.16,155.12,3.2239]
[1727722680373,3.2233,155.16,155.1,16.5687]
[1727722680873,3.2233,155.16,155.13,3.2238]
[1727722681268,1.2886,155.2,155.1,16.5687]
[1727722681465,3.2237,155.14,155.11,3.2242]
[1727722682470,13.93,155.17,155.09,0.12502]
[1727722683275,3.2242,155.12,155.09,3.34962]
[1727722683683,3.2242,155.12,155.1,3.2244]
[1727722683876,3.2242,155.12,155.09,0.12502]
[1727722684176,3.2245,155.1,155.09,0.12502]
[1727722694078,3.2244,155.11,155.09,0.12502]
[1727722694278,1.2304,155.16,155.09,9.04502]
[1727722694477,8.92,155.14,155.09,12.26962]
[1727722695376,3.2241,155.12,155.09,12.26962]
[1727722695575,15.1804,155.16,155.09,0.12502]
[1727722695881,15.1804,155.16,155.1,3.2244]
[1727722696077,3.2239,155.13,155.1,3.2244]
[1727722696279,1.2304,155.16,155.1,3.2244]
[1727722696784,3.2238,155.14,155.1,3.2244]
[1727722697176,1.2304,155.16,155.09,17.29962]
[1727722697177,3.224,155.13,155.09,17.29962]
[1727722697382,1.2304,155.16,155.09,17.29962]
[1727722697974,3.224,155.13,155.09,17.29962]
[1727722698174,1.2304,155.16,155.09,17.29962]
[1727722698582,3.224,155.13,155.09,17.29962]
[1727722698887,15.1804,155.16,155.09,3.34962]
[1727722699086,3.224,155.13,155.09,0.12502]
[1727722699280,13.95,155.12,155.09,0.12502]
[1727722699479,15.2427,155.12,155.09,0.12502]
[1727722699686,3.2245,155.1,155.09,0.12502]
[1727722703689,3.2243,155.11,155.09,0.12502]
[1727722703899,15.2427,155.12,155.09,0.12502]
[1727722704095,3.2243,155.11,155.09,0.12502]
[1727722704298,15.2427,155.12,155.09,0.12502]
[1727722705002,3.2245,155.1,155.09,0.12502]
[1727722707800,13.95,155.1,155.0,6.09640668]
[1727722708100,13.95,155.08,155.02,3.226]
[1727722708501,3.2256,155.05,155.02,3.226]
[1727722710408,3.2254,155.06,155.03,3.35092]
[1727722710904,3.2252,155.07,155.03,3.35092]
[1727722711100,13.95,155.08,155.03,3.35092]
[1727722711501,3.2252,155.07,155.03,0.12502]
[1727722712604,3.2252,155.07,155.03,3.35082]
[1727722715508,3.2252,155.07,155.03,0.12502]
[1727722715697,3.2252,155.07,155.04,3.2257]
[1727722715905,1.2927,155.12,155.04,13.95]
[1727722716199,14.07502,155.15,155.09,3.2246]
[1727722716610,3.224,155.13,155.09,3.2246]
[1727722717607,12.154,155.13,155.09,3.2246]
[1727722718012,3.2243,155.11,155.07,3.2251]
[1727722718311,3.2243,155.11,155.07,8.93]
[1727722718611,12.1547,155.1,155.06,3.2253]
[1727722718813,8.93,155.1,155.06,3.2253]
[1727722719313,3.2247,155.09,155.06,3.2253]
[1727722719706,3.2248,155.09,155.06,3.2253]
[1727722719909,13.93,155.12,155.06,3.2253]
[1727722720111,13.93,155.12,155.05,3.2254]
[1727722720312,3.2251,155.08,155.05,3.2254]
[1727722720512,13.93,155.1,155.03,0.12502]
[1727722721313,3.2257,155.05,155.03,0.12502]
[1727722721910,3.2257,155.05,155.03,3.35092]
[1727722722918,3.2257,155.05,155.03,0.12502]
[1727722724625,3.2252,155.07,155.03,0.12502]
[1727722725428,3.2252,155.07,155.04,3.2256]
[1727722725623,13.93,155.1,155.04,3.2256]
[1727722725936,3.2253,155.06,155.04,3.2256]
[1727722726831,3.2253,155.06,155.03,0.12502]
[1727722726832,1.3366,155.12,155.03,0.12502]
[1727722727031,3.2257,155.04,155.03,0.12502]
[1727722733227,13.93,155.05,155.03,0.12502]
[1727722733432,13.93,155.07,155.03,0.12502]
[1727722735144,1.26,155.08,155.03,0.12502]
[1727722735637,1.26,155.08,155.04,3.2257]
[1727722736738,1.26,155.08,155.03,3.35092]
[1727722737343,1.26,155.08,155.04,3.2257]
[1727722737942,1.26,155.08,155.03,0.12502]
[1727722738141,1.26,155.08,155.03,3.35092]
[1727722741442,15.19,155.08,155.03,3.35092]
[1727722741645,15.19,155.08,155.03,0.12502]
[1727722743942,13.93,155.05,155.03,0.12502]
[1727722749549,8.92,155.04,155.03,0.12502]
[1727722753148,12.09972584,155.04,155.03,0.12502]
[1727722753939,12.09972584,155.04,154.97,0.12502]
[1727722754144,8.92,155.02,154.99,3.2267]
[1727722755340,8.92,155.03,155.0,3.2265]
[1727722756346,8.92,155.04,155.01,3.2262]
[1727722756950,8.92,155.03,155.0,3.2265]
[1727722759048,8.92,155.05,154.99,8.92]
[1727722759252,8.92,155.02,154.97,0.12502]
[1727722760154,8.92,155.02,154.98,3.2269]
[1727722762853,8.92,155.03,154.99,3.2266]
[1727722763151,8.92,155.03,154.98,8.92]
[1727722763751,8.92,155.03,155.0,3.2265]
[1727722765654,8.92,155.03,154.98,8.92]
[1727722765854,8.92,155.05,154.99,8.92]
[1727722766253,8.92,155.05,155.0,3.2264]
[1727722766458,8.92,155.05,154.99,8.92]
[1727722766852,8.92,155.05,155.02,3.226]
[1727722769557,8.92,155.05,155.03,3.2259]
[1727722769755,8.92,155.05,154.99,8.92]
[1727722770151,8.92,155.05,155.03,3.2258]
[1727722770663,8.92,155.06,155.03,3.2258]
[1727722771148,12.0939109,155.05,154.97,0.12502]
[1727722771352,8.92,155.05,155.01,3.2262]
[1727722771958,12.19946047,155.05,155.01,3.2262]
[1727722772354,1.2358,155.07,155.0,8.92]
[1727722772554,10.1558,155.07,155.02,8.92]
[1727722772863,10.1558,155.07,155.03,3.2258]
[1727722773058,1.26,155.08,155.02,8.92]
[1727722773255,10.18,155.08,155.02,8.92]
[1727722773459,10.18,155.08,155.04,3.2256]
[1727722773963,10.18,155.08,155.02,8.92]
[1727722774558,10.18,155.08,155.04,3.2256]
[1727722777658,8.92,155.06,155.04,3.2256]
[1727722782069,8.92,155.06,155.0,8.92]
[1727722782367,8.92,155.05,154.99,10.2367]
[1727722782869,8.92,155.05,155.03,3.2258]
[1727722787167,8.92,155.05,155.04,3.2257]
[1727722787769,8.92,155.06,155.04,3.2257]
[1727722788168,8.92,155.06,155.04,3.2255]
[1727722788974,8.92,155.06,155.05,3.2255]
[1727722791063,8.92,155.06,155.04,3.2257]
[1727722791974,8.92,155.05,155.03,3.2258]
[1727722794105,8.92,155.05,155.04,3.2257]
[1727722795712,8.92,155.05,154.99,1.3167]
[1727722795913,8.92,155.05,155.03,3.2259]
[1727722796102,8.92,155.03,154.97,0.12502]
[1727722796407,8.92,155.01,154.98,25.15427974]
[1727722796605,8.92,155.01,154.99,16.68777609]
[1727722796807,3.26665733,155.04,155.0,6.15282381]
[1727722796995,1.356,155.07,154.98,3.2268]
[1727722796996,8.92,155.01,154.98,3.2268]
[1727722797202,8.92,154.99,154.98,3.2268]
[1727722797399,8.92,154.99,154.98,16.69022931]
[1727722797714,8.92,154.99,154.98,10.53627436]
[1727722798105,8.92,155.0,154.98,13.46339508]
[1727722798294,8.92,155.0,154.99,3.2267]
[1727722799602,8.92,155.02,155.01,3.2263]
[1727722799896,8.92,155.03,154.97,9.04502]
[1727722800096,8.92,155.03,154.98,13.45916551]
[1727722800299,8.92,155.03,155.01,3.2262]
[1727722800492,8.92,155.02,154.97,0.12502]
[1727722800707,8.92,155.0,154.98,6.15236487]
[1727722800906,8.92,155.02,154.98,13.46005915]
[1727722801099,8.92,155.02,154.99,6.15140675]
[1727722801296,2.6737,155.07,154.99,8.92]
[1727722801502,8.92,155.05,155.0,13.4524067]
[1727722801786,8.92,155.05,154.99,8.92]
[1727722802087,8.92,155.05,155.03,3.2258]
[1727722802480,2.6737,155.07,155.03,3.2258]
[1727722802481,8.92,155.04,155.03,3.2258]
[1727722802684,8.92,155.04,155.01,3.2262]
[1727722802875,8.92,155.02,155.01,3.2262]
[1727722803480,8.92,155.02,154.97,0.12502]
[1727722803680,8.92,155.02,154.98,13.45145545]
[1727722803874,8.92,155.04,154.99,13.45145545]
[1727722804079,8.92,155.04,155.02,3.226]
[1727722804378,8.92,155.04,154.97,0.12502]
[1727722804379,12.07486679,155.04,154.97,0.12502]
[1727722804582,8.92,155.01,154.98,13.45118434]
[1727722804784,8.92,155.02,155.0,3.2264]
[1727722804984,8.92,155.01,155.0,3.2264]
[1727722805181,8.92,155.01,154.97,0.12502]
[1727722805487,8.92,154.98,154.97,0.12502]
[1727722805779,1.338,155.0,154.97,0.12502]
[1727722805780,8.92,154.99,154.97,0.12502]
[1727722806383,10.258,155.0,154.97,0.12502]
[1727722806576,8.92,154.99,154.97,0.12502]
[1727722807178,8.92,154.98,154.97,0.12502]
[1727722808081,8.92,154.98,154.92,0.12518]
[1727722808287,8.92,154.93,154.92,0.12518]
[1727722808987,8.92,154.94,154.92,0.12518]
[1727722809580,1.338,155.0,154.92,0.12518]
[1727722809786,0.98268746,154.99,154.92,9.04518]
[1727722809982,0.98268746,154.99,154.92,0.12518]
[1727722809983,8.92,154.96,154.92,0.12518]
[1727722810481,1.338,155.0,154.93,3.228]
[1727722810482,8.92,154.94,154.93,3.228]
[1727722810693,8.92,154.94,154.92,0.12518]
[1727722810885,8.92,154.93,154.92,0.12518]
[1727722811286,8.92,154.95,154.92,0.12518]
[1727722811493,8.92,154.95,154.94,3.2278]
[1727722811684,8.92,154.95,154.92,0.12518]
[1727722812087,8.92,154.95,154.93,3.2279]
[1727722812388,8.92,154.95,154.92,0.12518]
[1727722812585,8.92,154.96,154.92,0.12518]
[1727722813086,8.92,154.95,154.92,0.12518]
[1727722814283,8.92,154.96,154.92,0.12518]
[1727722814787,8.92,154.96,154.95,3.2276]
[1727722815183,8.92,154.96,154.92,0.12518]
[1727722815384,8.92,154.95,154.93,3.2278]
[1727722815584,8.92,154.94,154.92,0.12518]
[1727722817292,1.338,155.0,154.92,0.12518]
[1727722817490,8.92,154.93,154.92,0.12518]
[1727722818390,8.92,154.93,154.92,3.35338]
[1727722818589,8.92,154.94,154.92,0.12518]
[1727722818791,8.92,154.93,154.92,0.12518]
[1727722819184,8.92,154.94,154.92,0.12518]
[1727722819789,8.92,154.95,154.94,3.2277]
[1727722820290,8.92,154.97,154.96,3.2273]
[1727722820888,8.92,154.97,154.95,3.2275]
[1727722821196,8.92,154.97,154.92,9.04518]
[1727722821589,1.338,155.0,154.92,9.04518]
[1727722821590,8.92,155.0,154.95,8.92]
[1727722821891,8.92,155.02,154.97,8.92]
[1727722822094,8.92,155.02,155.01,3.2264]
[1727722822681,1.3555,155.05,154.98,8.92]
[1727722822888,9.04502,155.03,155.02,3.2261]
[1727722824699,9.04502,155.03,154.97,8.92]
[1727722824990,9.04502,155.03,154.98,8.92]
[1727722825188,0.12502,155.03,154.98,8.92]
[1727722825992,0.12502,155.03,155.02,3.2261]
[1727722825993,9.04502,155.03,155.02,3.2261]
[1727722826184,9.04502,155.03,154.98,8.92]
[1727722826593,8.92,155.01,154.99,3.2267]
[1727722827686,8.92,155.01,155.0,3.2266]
[1727722829491,0.12502,155.03,155.01,3.2263]
[1727722829796,8.92,155.02,155.01,3.2263]
[1727722830102,8.92,155.02,154.96,8.92]
[1727722830396,8.92,155.0,154.96,8.92]
[1727722831206,8.92,154.99,154.95,8.92]
[1727722831390,8.92,154.99,154.93,11.4421]
[1727722831791,12.1469,154.99,154.93,11.4421]
[1727722832487,12.1469,154.99,154.96,3.2272]
[1727722832894,8.92,154.98,154.91,78.76502]
[1727722833101,8.92,154.96,154.95,3.2276]
[1727722833298,8.92,154.98,154.93,8.92]
[1727722833596,0.12502,155.03,154.98,3.227]
[1727722833597,8.92,154.99,154.98,3.227]
[1727722834397,0.12502,155.03,155.0,3.2264]
[1727722834601,8.92,155.01,154.93,2.5488]
[1727722834794,8.92,155.01,154.95,8.92]
[1727722835201,0.12502,155.03,154.98,8.92]
[1727722835500,0.12502,155.03,154.99,8.92]
[1727722835696,0.12502,155.03,155.02,3.2261]
[1727722836297,0.12502,155.03,155.02,12.1461]
[1727722836700,75.00904591,155.09,155.02,8.92]
[1727722836902,78.23384591,155.09,155.06,3.2253]
[1727722837194,9.04502,155.09,155.04,8.92]
[1727722837405,9.04502,155.09,155.07,3.2249]
[1727722837598,0.12502,155.09,155.02,13.93]
[1727722837990,3.34972,155.09,155.02,13.93]
[1727722839401,0.12502,155.09,155.04,13.93]
[1727722839602,0.12502,155.09,155.08,3.2249]
[1727722840392,0.12502,155.09,155.05,1.2619]
[1727722840393,0.12502,155.09,155.06,3.2253]
[1727722840804,0.12502,155.09,155.05,1.2619]
[1727722840805,3.34982,155.09,155.05,1.2619]
[1727722841003,3.34982,155.09,155.05,3.2254]
[1727722841393,3.34982,155.09,155.06,3.2253]
[1727722841795,0.12502,155.09,155.04,13.93]
[1727722842503,0.12502,155.09,155.08,3.2249]
[1727722843001,0.12502,155.09,155.05,3.2254]
[1727722843225,0.12502,155.09,155.02,15.2866]
[1727722844405,0.12502,155.09,155.06,3.2252]
[1727722845200,0.12502,155.09,155.07,3.2249]
[1727722845402,0.12502,155.09,155.02,15.2866]
[1727722845711,0.12502,155.09,155.04,13.93]
[1727722846008,0.12502,155.09,155.08,3.2249]
[1727722847306,3.34852,155.15,155.12,3.224]
[1727722848409,3.34852,155.15,155.08,13.93]
[1727722848410,0.12502,155.15,155.08,13.93]
[1727722848613,0.12502,155.15,155.1,13.93]
[1727722850906,0.12502,155.15,155.14,3.2237]
[1727722852304,0.12502,155.15,155.09,3.2246]
[1727722852511,0.12502,155.15,155.08,15.2703]
[1727722852910,0.12502,155.15,155.13,3.2237]
[1727722854313,3.2237,155.14,155.11,3.2243]
[1727722854710,0.12502,155.15,155.11,3.2243]
[1727722854918,0.12502,155.15,155.1,3.2244]
[1727722855110,0.12502,155.15,155.08,1.3403]
[1727722855414,13.93,155.13,155.07,1.26]
[1727722855718,13.93,155.13,155.08,3.2249]
[1727722856112,13.93,155.11,155.06,70.9051]
[1727722856318,13.93,155.11,155.06,74.1303]
[1727722856618,13.93,155.11,155.06,70.9051]
[1727722856915,3.2246,155.1,155.07,3.2251]
[1727722858113,13.93,155.11,155.07,3.2251]
[1727722858423,17.1544,155.11,155.07,3.2251]
[1727722859017,13.93,155.11,155.07,3.2251]
[1727722859217,3.2245,155.1,155.07,3.2251]
[1727722860015,3.2245,155.1,155.08,3.2249]
[1727722860214,17.1543,155.11,155.08,3.2249]
[1727722860420,3.2243,155.11,155.08,3.2249]
[1727722861432,13.93,155.13,155.06,70.9051]
[1727722861433,3.2241,155.12,155.09,3.2246]
[1727722862115,1.357,155.14,155.06,84.8351]
[1727722862421,1.44862,155.15,155.11,3.2242]
[1727722862422,0.12502,155.15,155.11,3.2242]
[1727722862624,0.12502,155.15,155.06,70.9051]
[1727722863420,0.12502,155.15,155.06,1.2451]
[1727722863621,3.2241,155.12,155.09,3.2246]
[1727722864318,13.93,155.12,155.06,1.2451]
[1727722864618,0.12502,155.15,155.04,1.3246]
[1727722864619,4.52088672,155.14,155.04,1.3246]
[1727722864818,13.93,155.08,155.03,0.12502]
[1727722865421,3.2256,155.05,155.03,0.12502]
[1727722865618,13.93,155.08,155.03,0.12502]
[1727722865821,13.93,155.1,155.03,0.12502]
[1727722866026,3.2248,155.09,155.05,3.2255]
[1727722866717,13.93,155.12,155.03,14.05502]
[1727722866943,1.3428,155.13,155.05,13.93]
[1727722867317,0.12502,155.15,155.05,13.93]
[1727722867521,0.12502,155.15,155.08,13.93]
[1727722868129,0.12502,155.15,155.1,13.93]
[1727722868515,0.12502,155.15,155.14,3.2237]
[1727722870024,0.12502,155.15,155.13,3.2238]
[1727722871223,0.12502,155.15,155.1,13.93]
[1727722871522,0.12502,155.15,155.14,3.2237]
[1727722873418,0.12502,155.21,155.14,13.93]
[1727722873624,0.12502,155.21,155.16,13.93]
[1727722874133,0.12502,155.21,155.18,3.2227]
[1727722875127,3.34722,155.21,155.18,3.2227]
[1727722875832,0.12502,155.21,155.18,3.2227]
[1727722876430,0.12502,155.21,155.19,3.2225]
[1727722876731,0.12502,155.21,155.16,13.93]
[1727722877841,0.12502,155.21,155.19,3.2225]
[1727722878937,14.05502,155.21,155.16,3.2231]
[1727722879128,14.05502,155.21,155.14,1.3087]
[1727722879370,14.05502,155.21,155.12,1.3439]
[1727722879371,3.223,155.18,155.12,1.3439]
[1727722879630,13.93,155.19,155.14,3.2236]
[1727722879830,13.93,155.17,155.1,1.3211]
[1727722880025,13.93,155.17,155.11,72.8842]
[1727722880224,13.93,155.17,155.11,3.2242]
[1727722880437,3.2239,155.13,155.09,0.12502]
[1727722881141,13.93,155.13,155.09,0.12502]
[1727722881737,13.93,155.15,155.09,3.34952]
[1727722882234,3.2237,155.14,155.11,3.2243]
[1727722883036,3.2235,155.15,155.12,3.224]
[1727722883237,3.2235,155.15,155.09,0.12502]
[1727722883436,13.93,155.17,155.09,0.12502]
[1727722883633,13.93,155.15,155.09,0.12502]
[1727722884239,13.93,155.13,155.09,0.12502]
[1727722884638,3.2244,155.11,155.09,0.12502]
[1727722885038,13.93,155.13,155.09,0.12502]
[1727722885844,3.2241,155.12,155.09,0.12502]
[1727722886639,13.93,155.15,155.09,0.12502]
[1727722886837,3.2238,155.14,155.09,0.12502]
[1727722887241,3.2238,155.14,155.1,3.2243]
[1727722887741,3.2239,155.13,155.1,3.2243]
[1727722888138,1.3013,155.19,155.11,3.2242]
[1727722888139,13.93,155.17,155.11,3.2242]
[1727722888344,3.2233,155.16,155.09,0.12502]
[1727722889335,13.93,155.17,155.09,0.12502]
[1727722889743,3.2233,155.16,155.13,3.2237]
[1727722891041,13.93,155.17,155.13,3.2237]
[1727722891241,3.2235,155.15,155.13,3.2237]
[1727722891950,13.93,155.17,155.14,3.2236]
[1727722891951,17.1531,155.17,155.14,3.2236]
[1727722892847,3.2229,155.18,155.1,13.93]
[1727722893040,3.2229,155.18,155.11,1.3392]
[1727722893244,1.3217,155.2,155.12,17.19768106]